[Event "Late-Titled-Tuesday-Blitz-May-14-2024"]
[Site "Chess.com"]
[Date "2024.05.14"]
[Round "7"]
[White "Durarbayli"]
[Black "FLamps8"]
[Result "0-1"]
[WhiteElo "2939"]
[BlackElo "2716"]
[TimeControl "180+1"]
[EndTime "15:17:04 PDT"]
[Termination "FLamps8 won on time"]

1. e4 {[%clk 0:03:00.9]} 1... e5 {[%clk 0:02:59.3]} 2. Nf3 {[%clk 0:03:00.8]}
2... Nf6 {[%clk 0:02:59.2]} 3. d4 {[%clk 0:02:58.6]} 3... Nxe4 {[%clk
0:02:58.9]} 4. dxe5 {[%clk 0:02:58.8]} 4... d5 {[%clk 0:02:56]} 5. Nbd2 {[%clk
0:02:53.1]} 5... Nxd2 {[%clk 0:02:51.6]} 6. Qxd2 {[%clk 0:02:41.2]} 6... c5
{[%clk 0:02:41.8]} 7. Be2 {[%clk 0:02:21.5]} 7... Nc6 {[%clk 0:02:38.2]} 8. O-O
{[%clk 0:02:22]} 8... h6 {[%clk 0:02:36.6]} 9. Rd1 {[%clk 0:01:58.6]} 9... Be6
{[%clk 0:02:36.2]} 10. Qf4 {[%clk 0:01:45.1]} 10... g5 {[%clk 0:02:25.5]} 11.
Qg3 {[%clk 0:01:40.5]} 11... Qc7 {[%clk 0:02:20.3]} 12. c4 {[%clk 0:01:17.6]}
12... d4 {[%clk 0:02:11.6]} 13. h3 {[%clk 0:01:12.9]} 13... Bg7 {[%clk
0:02:04.9]} 14. Re1 {[%clk 0:01:12.3]} 14... Nxe5 {[%clk 0:01:50.3]} 15. Bd3
{[%clk 0:00:32.4]} 15... Nxf3+ {[%clk 0:01:43.8]} 16. Qxf3 {[%clk 0:00:33.3]}
16... O-O-O {[%clk 0:01:41.9]} 17. Bd2 {[%clk 0:00:34]} 17... Be5 {[%clk
0:01:11.8]} 18. Rab1 {[%clk 0:00:29.4]} 18... Rhg8 {[%clk 0:01:10.7]} 19. Bf5
{[%clk 0:00:27.7]} 19... Rde8 {[%clk 0:00:38.1]} 20. b4 {[%clk 0:00:24.7]} 20...
Bf4 {[%clk 0:00:38.1]} 21. Bxe6+ {[%clk 0:00:18.9]} 21... Rxe6 {[%clk 0:00:39]}
22. Rxe6 {[%clk 0:00:18.7]} 22... fxe6 {[%clk 0:00:38.1]} 23. Qe4 {[%clk
0:00:14.9]} 23... Re8 {[%clk 0:00:34.3]} 24. Qg6 {[%clk 0:00:12.5]} 24... Re7
{[%clk 0:00:24.3]} 25. Bxf4 {[%clk 0:00:12.6]} 25... gxf4 {[%clk 0:00:21]} 26.
Qxh6 {[%clk 0:00:11.3]} 26... cxb4 {[%clk 0:00:18.1]} 27. Qf8+ {[%clk
0:00:10.2]} 27... Qd8 {[%clk 0:00:16.3]} 28. Qxf4 {[%clk 0:00:10.8]} 28... e5
{[%clk 0:00:16.4]} 29. Qe4 {[%clk 0:00:11.1]} 29... Qd6 {[%clk 0:00:15.7]} 30.
Rd1 {[%clk 0:00:07.4]} 30... Rc7 {[%clk 0:00:13.8]} 31. Qf5+ {[%clk 0:00:06.5]}
31... Kb8 {[%clk 0:00:12.3]} 32. h4 {[%clk 0:00:06.1]} 32... Rxc4 {[%clk
0:00:10.1]} 33. h5 {[%clk 0:00:06.8]} 33... Rc8 {[%clk 0:00:07.9]} 34. Rd3
{[%clk 0:00:07.1]} 34... Rf8 {[%clk 0:00:07.8]} 35. Qe4 {[%clk 0:00:05.7]} 35...
Rf4 {[%clk 0:00:07.4]} 36. Qg6 {[%clk 0:00:06.3]} 36... Qxg6 {[%clk 0:00:06.2]}
37. hxg6 {[%clk 0:00:07.2]} 37... Rf8 {[%clk 0:00:05.9]} 38. Rg3 {[%clk
0:00:06.7]} 38... Rg8 {[%clk 0:00:04.8]} 39. Rg5 {[%clk 0:00:06.3]} 39... Kc7
{[%clk 0:00:04.6]} 40. Rxe5 {[%clk 0:00:04.7]} 40... Rxg6 {[%clk 0:00:04.8]} 41.
Rb5 {[%clk 0:00:03.9]} 41... d3 {[%clk 0:00:03.4]} 42. Rxb4 {[%clk 0:00:04.1]}
42... d2 {[%clk 0:00:02.9]} 43. Rb1 {[%clk 0:00:02.9]} 43... Rc6 {[%clk
0:00:03.3]} 0-1

[Event "Late-Titled-Tuesday-Blitz-May-14-2024"]
[Site "Chess.com"]
[Date "2024.05.14"]
[Round "7"]
[White "HandKnit"]
[Black "MuhittinBuker"]
[Result "1-0"]
[WhiteElo "2503"]
[BlackElo "2235"]
[TimeControl "180+1"]
[EndTime "15:17:04 PDT"]
[Termination "HandKnit won on time"]

1. e4 {[%clk 0:03:00.9]} 1... e5 {[%clk 0:02:59]} 2. Nf3 {[%clk 0:03:00.5]} 2...
Nc6 {[%clk 0:02:58.5]} 3. Bb5 {[%clk 0:03:01]} 3... a6 {[%clk 0:02:58.3]} 4.
Bxc6 {[%clk 0:03:01.3]} 4... dxc6 {[%clk 0:02:58.1]} 5. O-O {[%clk 0:03:02.2]}
5... Bg4 {[%clk 0:02:57.7]} 6. h3 {[%clk 0:03:02.3]} 6... h5 {[%clk 0:02:57.5]}
7. d3 {[%clk 0:03:02.6]} 7... Qf6 {[%clk 0:02:56.8]} 8. Nbd2 {[%clk 0:03:02.9]}
8... Ne7 {[%clk 0:02:56.7]} 9. Nc4 {[%clk 0:03:02.2]} 9... Bxf3 {[%clk
0:02:46.8]} 10. Qxf3 {[%clk 0:03:03.1]} 10... Qxf3 {[%clk 0:02:41.9]} 11. gxf3
{[%clk 0:03:04]} 11... f6 {[%clk 0:02:40.7]} 12. f4 {[%clk 0:02:54.9]} 12... Ng6
{[%clk 0:02:24.2]} 13. fxe5 {[%clk 0:02:51.8]} 13... fxe5 {[%clk 0:02:21.8]} 14.
f4 {[%clk 0:02:40.3]} 14... exf4 {[%clk 0:02:17.7]} 15. Bxf4 {[%clk 0:02:40.2]}
15... Bc5+ {[%clk 0:02:13.7]} 16. Kg2 {[%clk 0:02:35.9]} 16... O-O-O {[%clk
0:02:11.2]} 17. Bg5 {[%clk 0:02:32.6]} 17... Rdf8 {[%clk 0:02:08.7]} 18. c3
{[%clk 0:02:23.5]} 18... Be7 {[%clk 0:02:02.7]} 19. Bxe7 {[%clk 0:02:20.5]}
19... Nxe7 {[%clk 0:02:01.7]} 20. Ne5 {[%clk 0:02:12.9]} 20... c5 {[%clk
0:01:49.5]} 21. Kg3 {[%clk 0:02:09.2]} 21... g5 {[%clk 0:01:38.6]} 22. Nf7
{[%clk 0:01:51.9]} 22... Rhg8 {[%clk 0:01:35.8]} 23. Rf2 {[%clk 0:01:48.1]}
23... Kd7 {[%clk 0:01:28.4]} 24. Raf1 {[%clk 0:01:45.3]} 24... Ke8 {[%clk
0:01:26.4]} 25. Ne5 {[%clk 0:01:30.2]} 25... Rxf2 {[%clk 0:01:23.4]} 26. Rxf2
{[%clk 0:01:31.1]} 26... b6 {[%clk 0:01:15.2]} 27. Rf6 {[%clk 0:01:10.8]} 27...
Rf8 {[%clk 0:01:04.2]} 28. Rxf8+ {[%clk 0:01:06.9]} 28... Kxf8 {[%clk
0:01:03.1]} 29. Nf3 {[%clk 0:01:07.3]} 29... g4 {[%clk 0:00:39.7]} 30. hxg4
{[%clk 0:01:08.2]} 30... hxg4 {[%clk 0:00:39.1]} 31. Kxg4 {[%clk 0:01:09.1]}
31... Kf7 {[%clk 0:00:37.2]} 32. Kf4 {[%clk 0:01:00]} 32... Ke6 {[%clk
0:00:36.6]} 33. Ng5+ {[%clk 0:00:57.2]} 33... Kd6 {[%clk 0:00:33.6]} 34. e5+
{[%clk 0:00:47.7]} 34... Kd5 {[%clk 0:00:32.2]} 35. e6 {[%clk 0:00:46.9]} 35...
b5 {[%clk 0:00:26.3]} 36. b3 {[%clk 0:00:43.5]} 36... a5 {[%clk 0:00:25.6]} 37.
c4+ {[%clk 0:00:39.6]} 37... bxc4 {[%clk 0:00:14.3]} 38. dxc4+ {[%clk
0:00:40.5]} 38... Kd4 {[%clk 0:00:13.5]} 39. Nf7 {[%clk 0:00:26.4]} 39... a4
{[%clk 0:00:11.3]} 40. Kg5 {[%clk 0:00:19.6]} 40... a3 {[%clk 0:00:10.6]} 41.
Kf6 {[%clk 0:00:19.5]} 41... Nc6 {[%clk 0:00:10.3]} 42. Nd8 {[%clk 0:00:11.4]}
42... Nxd8 {[%clk 0:00:04.4]} 43. e7 {[%clk 0:00:11.6]} 43... Nc6 {[%clk
0:00:03.7]} 44. e8=Q {[%clk 0:00:11.3]} 44... Nb4 {[%clk 0:00:03.4]} 45. Qe2
{[%clk 0:00:10.2]} 45... Kc3 {[%clk 0:00:00.8]} 46. Ke7 {[%clk 0:00:09.7]} 1-0

[Event "Late-Titled-Tuesday-Blitz-May-14-2024"]
[Site "Chess.com"]
[Date "2024.05.14"]
[Round "7"]
[White "AlexOstrovskiy"]
[Black "betta2004"]
[Result "1-0"]
[WhiteElo "2722"]
[BlackElo "2538"]
[TimeControl "180+1"]
[EndTime "15:17:09 PDT"]
[Termination "AlexOstrovskiy won by resignation"]

1. e4 {[%clk 0:03:00.7]} 1... c5 {[%clk 0:02:51.6]} 2. Nc3 {[%clk 0:03:00.3]}
2... Nc6 {[%clk 0:02:49]} 3. Bb5 {[%clk 0:02:59.9]} 3... Nd4 {[%clk 0:02:46.9]}
4. Nf3 {[%clk 0:02:59.9]} 4... a6 {[%clk 0:02:40.5]} 5. Bd3 {[%clk 0:02:59.5]}
5... e6 {[%clk 0:02:40.7]} 6. O-O {[%clk 0:02:56.4]} 6... Nc6 {[%clk 0:02:40.5]}
7. Nd5 {[%clk 0:02:55.7]} 7... g5 {[%clk 0:02:35.7]} 8. Nxg5 {[%clk 0:02:53.6]}
8... exd5 {[%clk 0:02:34.6]} 9. Qh5 {[%clk 0:02:50.1]} 9... Qe7 {[%clk
0:02:08.2]} 10. exd5 {[%clk 0:02:48.8]} 10... Nf6 {[%clk 0:02:08.5]} 11. Qh4
{[%clk 0:02:14.5]} 11... Nxd5 {[%clk 0:02:07.6]} 12. Bc4 {[%clk 0:02:05.4]}
12... h6 {[%clk 0:02:07.3]} 13. Bxd5 {[%clk 0:02:00.8]} 13... Qxg5 {[%clk
0:02:02.9]} 14. Qc4 {[%clk 0:01:42.3]} 14... Qg6 {[%clk 0:01:37.6]} 15. Re1+
{[%clk 0:01:34.3]} 15... Be7 {[%clk 0:01:17.7]} 16. Qxc5 {[%clk 0:01:22.5]}
16... Kf8 {[%clk 0:01:16.6]} 17. Qe3 {[%clk 0:01:15.5]} 17... Bg5 {[%clk
0:01:09.5]} 18. f4 {[%clk 0:01:04.4]} 18... Bf6 {[%clk 0:01:05.9]} 19. c3 {[%clk
0:01:01.9]} 19... Ne7 {[%clk 0:01:05.4]} 20. Be4 {[%clk 0:00:58.4]} 20... Qh5
{[%clk 0:01:05.5]} 21. d4 {[%clk 0:00:53.8]} 21... d5 {[%clk 0:01:05.5]} 22. Bf3
{[%clk 0:00:54.2]} 22... Bg4 {[%clk 0:01:04.9]} 23. Bxg4 {[%clk 0:00:49.6]}
23... Qxg4 {[%clk 0:01:05.8]} 24. h3 {[%clk 0:00:50.3]} 24... Qh4 {[%clk
0:00:57.8]} 25. b3 {[%clk 0:00:46.7]} 25... Nf5 {[%clk 0:00:56.4]} 26. Ba3+
{[%clk 0:00:46.8]} 26... Kg7 {[%clk 0:00:56.8]} 27. Qd3 {[%clk 0:00:43.1]} 27...
Ng3 {[%clk 0:00:52.8]} 28. Qf3 {[%clk 0:00:28.5]} 28... Ne4 {[%clk 0:00:45.8]}
29. Rad1 {[%clk 0:00:28.3]} 29... Rae8 {[%clk 0:00:38.1]} 30. Re3 {[%clk
0:00:27]} 30... Bd8 {[%clk 0:00:12.7]} 31. c4 {[%clk 0:00:20.4]} 31... Nf6
{[%clk 0:00:12.6]} 32. Bd6 {[%clk 0:00:09.7]} 32... Re6 {[%clk 0:00:11.6]} 33.
Be5 {[%clk 0:00:08.6]} 33... Kh7 {[%clk 0:00:10.7]} 34. Kh2 {[%clk 0:00:06.3]}
34... Rg8 {[%clk 0:00:09.4]} 35. f5 {[%clk 0:00:03.1]} 35... Ng4+ {[%clk
0:00:07.8]} 36. Kg1 {[%clk 0:00:02.4]} 36... Nxe3 {[%clk 0:00:07.8]} 37. fxe6
{[%clk 0:00:02.9]} 37... Rxg2+ {[%clk 0:00:04.6]} 38. Kh1 {[%clk 0:00:02.4]}
38... Rf2 {[%clk 0:00:01.9]} 39. Qxe3 {[%clk 0:00:02.2]} 39... f6 {[%clk
0:00:00.7]} 40. Qd3+ {[%clk 0:00:01.7]} 40... f5 {[%clk 0:00:00.6]} 41. Qg3
{[%clk 0:00:02.1]} 41... Qxg3 {[%clk 0:00:00.7]} 42. Bxg3 {[%clk 0:00:03]} 42...
Rf3 {[%clk 0:00:01.4]} 43. Kg2 {[%clk 0:00:02.7]} 43... Re3 {[%clk 0:00:01.4]}
44. cxd5 {[%clk 0:00:03.1]} 44... f4 {[%clk 0:00:01.2]} 45. Bf2 {[%clk
0:00:02.9]} 45... Re4 {[%clk 0:00:02.1]} 46. Kf3 {[%clk 0:00:03]} 46... Rxe6
{[%clk 0:00:01.2]} 47. dxe6 {[%clk 0:00:03.3]} 47... Kg6 {[%clk 0:00:01.8]} 48.
d5 {[%clk 0:00:03.9]} 48... Kf6 {[%clk 0:00:02.7]} 49. Rd4 {[%clk 0:00:04]} 1-0

[Event "Late-Titled-Tuesday-Blitz-May-14-2024"]
[Site "Chess.com"]
[Date "2024.05.14"]
[Round "7"]
[White "chess_sharparchitect"]
[Black "wild3000"]
[Result "1/2-1/2"]
[WhiteElo "2359"]
[BlackElo "2475"]
[TimeControl "180+1"]
[EndTime "15:17:14 PDT"]
[Termination "Game drawn - insufficient material"]

1. c4 {[%clk 0:03:00.9]} 1... h5 {[%clk 0:02:55.3]} 2. Nc3 {[%clk 0:02:59.7]}
2... h4 {[%clk 0:02:55.2]} 3. e4 {[%clk 0:02:51.2]} 3... d6 {[%clk 0:02:55]} 4.
h3 {[%clk 0:02:51]} 4... e5 {[%clk 0:02:55]} 5. Nf3 {[%clk 0:02:49.5]} 5... Nc6
{[%clk 0:02:55.1]} 6. d4 {[%clk 0:02:49.5]} 6... exd4 {[%clk 0:02:55.2]} 7. Nxd4
{[%clk 0:02:49.8]} 7... Nxd4 {[%clk 0:02:54.4]} 8. Qxd4 {[%clk 0:02:49.5]} 8...
Nf6 {[%clk 0:02:51]} 9. Be2 {[%clk 0:02:36.8]} 9... Be7 {[%clk 0:02:50.7]} 10.
b4 {[%clk 0:02:24.7]} 10... c6 {[%clk 0:02:49.6]} 11. Bb2 {[%clk 0:02:24.8]}
11... a5 {[%clk 0:02:48.7]} 12. a3 {[%clk 0:02:23.2]} 12... axb4 {[%clk
0:02:46.1]} 13. axb4 {[%clk 0:02:24.1]} 13... Rxa1+ {[%clk 0:02:46.2]} 14. Bxa1
{[%clk 0:02:24.4]} 14... O-O {[%clk 0:02:46.9]} 15. O-O {[%clk 0:02:20.7]} 15...
c5 {[%clk 0:02:44.7]} 16. bxc5 {[%clk 0:02:14.2]} 16... dxc5 {[%clk 0:02:45.6]}
17. Qe3 {[%clk 0:02:09.5]} 17... Re8 {[%clk 0:02:33.1]} 18. Qf4 {[%clk
0:01:39.5]} 18... Bd6 {[%clk 0:01:38.1]} 19. Qxh4 {[%clk 0:01:38.7]} 19... Be5
{[%clk 0:01:38.2]} 20. Nd5 {[%clk 0:01:04]} 20... Bxa1 {[%clk 0:01:33.2]} 21.
Rxa1 {[%clk 0:01:01.8]} 21... Nxe4 {[%clk 0:01:29.6]} 22. Qxd8 {[%clk
0:00:47.2]} 22... Rxd8 {[%clk 0:01:28.5]} 23. Ra8 {[%clk 0:00:42.8]} 23... Kf8
{[%clk 0:01:22.7]} 24. Bg4 {[%clk 0:00:39.9]} 24... Nd6 {[%clk 0:01:13.9]} 25.
Nb6 {[%clk 0:00:34.5]} 25... f5 {[%clk 0:01:09.7]} 26. Bxf5 {[%clk 0:00:28.2]}
26... Nxf5 {[%clk 0:01:08.4]} 27. Rxc8 {[%clk 0:00:26.2]} 27... Rxc8 {[%clk
0:01:08.1]} 28. Nxc8 {[%clk 0:00:26.2]} 28... Ke8 {[%clk 0:00:56.3]} 29. g4
{[%clk 0:00:24.9]} 29... Nh4 {[%clk 0:00:42.2]} 30. Nd6+ {[%clk 0:00:24.1]}
30... Kd7 {[%clk 0:00:42.2]} 31. Nxb7 {[%clk 0:00:24.4]} 31... Kc6 {[%clk
0:00:41.9]} 32. Nd8+ {[%clk 0:00:23.6]} 32... Kd7 {[%clk 0:00:39.9]} 33. Nf7
{[%clk 0:00:22.2]} 33... Nf3+ {[%clk 0:00:34.7]} 34. Kg2 {[%clk 0:00:22]} 34...
Nd2 {[%clk 0:00:34.2]} 35. Ne5+ {[%clk 0:00:20.4]} 35... Ke6 {[%clk 0:00:33.7]}
36. Nd3 {[%clk 0:00:19.9]} 36... Kd6 {[%clk 0:00:29.7]} 37. Nb2 {[%clk
0:00:19.8]} 37... Ke5 {[%clk 0:00:28.6]} 38. Kg3 {[%clk 0:00:18.8]} 38... g5
{[%clk 0:00:21.4]} 39. h4 {[%clk 0:00:17.9]} 39... Ne4+ {[%clk 0:00:20.6]} 40.
Kh3 {[%clk 0:00:15.4]} 40... Nxf2+ {[%clk 0:00:18.6]} 41. Kg3 {[%clk 0:00:15.7]}
41... Ne4+ {[%clk 0:00:18.3]} 42. Kh3 {[%clk 0:00:15.8]} 42... gxh4 {[%clk
0:00:18.2]} 43. Kxh4 {[%clk 0:00:15.7]} 43... Kd4 {[%clk 0:00:18.1]} 44. g5
{[%clk 0:00:15.1]} 44... Kc3 {[%clk 0:00:16.8]} 45. Na4+ {[%clk 0:00:13.2]}
45... Kxc4 {[%clk 0:00:16.2]} 46. g6 {[%clk 0:00:12.2]} 46... Nf6 {[%clk
0:00:14.6]} 47. Kg5 {[%clk 0:00:11]} 47... Ng8 {[%clk 0:00:14.8]} 48. Nxc5
{[%clk 0:00:10.5]} 48... Kxc5 {[%clk 0:00:14.9]} 49. Kf5 {[%clk 0:00:11]} 49...
Kd6 {[%clk 0:00:14.8]} 50. g7 {[%clk 0:00:10.7]} 50... Ke7 {[%clk 0:00:14.9]}
51. Kg6 {[%clk 0:00:11.3]} 51... Ke6 {[%clk 0:00:14.4]} 52. Kg5 {[%clk
0:00:11.7]} 52... Kf7 {[%clk 0:00:14.4]} 53. Kf5 {[%clk 0:00:11.7]} 53... Kxg7
{[%clk 0:00:14.8]} 1/2-1/2

[Event "Late-Titled-Tuesday-Blitz-May-14-2024"]
[Site "Chess.com"]
[Date "2024.05.14"]
[Round "7"]
[White "varunkrishnanchess"]
[Black "GoltsevDmitry2000"]
[Result "0-1"]
[WhiteElo "2602"]
[BlackElo "2744"]
[TimeControl "180+1"]
[EndTime "15:17:15 PDT"]
[Termination "GoltsevDmitry2000 won by checkmate"]

1. a3 {[%clk 0:02:54.6]} 1... g6 {[%clk 0:02:59.1]} 2. e4 {[%clk 0:02:52]} 2...
Bg7 {[%clk 0:02:58.9]} 3. d4 {[%clk 0:02:51.8]} 3... e6 {[%clk 0:02:58.9]} 4.
Nf3 {[%clk 0:02:38.3]} 4... d5 {[%clk 0:02:58.8]} 5. e5 {[%clk 0:02:38.2]} 5...
c5 {[%clk 0:02:57.7]} 6. dxc5 {[%clk 0:02:28.4]} 6... Nd7 {[%clk 0:02:57.2]} 7.
Bb5 {[%clk 0:02:24.1]} 7... a6 {[%clk 0:02:45.6]} 8. Ba4 {[%clk 0:02:22.9]} 8...
Qa5+ {[%clk 0:02:41.2]} 9. Nc3 {[%clk 0:02:22]} 9... Qxc5 {[%clk 0:02:41.7]} 10.
Be3 {[%clk 0:02:21.1]} 10... Qc7 {[%clk 0:02:39.4]} 11. O-O {[%clk 0:02:20]}
11... Ne7 {[%clk 0:02:37.8]} 12. Qd2 {[%clk 0:02:16.2]} 12... b5 {[%clk
0:02:31.7]} 13. Bb3 {[%clk 0:02:08.3]} 13... Nxe5 {[%clk 0:02:26.3]} 14. Nxe5
{[%clk 0:02:07.9]} 14... Bxe5 {[%clk 0:02:27]} 15. Bd4 {[%clk 0:02:07.8]} 15...
Bxh2+ {[%clk 0:02:24.2]} 16. Kh1 {[%clk 0:02:07.5]} 16... Be5 {[%clk 0:02:24.6]}
17. Rfe1 {[%clk 0:02:07.6]} 17... Bxd4 {[%clk 0:02:22]} 18. Qxd4 {[%clk
0:02:06.9]} 18... O-O {[%clk 0:02:22.6]} 19. Re3 {[%clk 0:01:56.9]} 19... Nf5
{[%clk 0:02:21.5]} 20. Qd2 {[%clk 0:01:56.2]} 20... d4 {[%clk 0:02:17.8]} 21.
Rh3 {[%clk 0:01:53.8]} 21... dxc3 {[%clk 0:02:17.4]} 22. bxc3 {[%clk 0:01:54.7]}
22... Qe5 {[%clk 0:02:11.6]} 23. Re1 {[%clk 0:01:49.3]} 23... Qg7 {[%clk
0:02:08.2]} 24. g4 {[%clk 0:01:47.6]} 24... Bb7+ {[%clk 0:02:07.5]} 25. Kh2
{[%clk 0:01:47]} 25... Rad8 {[%clk 0:01:57.8]} 26. Qg5 {[%clk 0:01:45.6]} 26...
Nd6 {[%clk 0:01:49.4]} 27. f3 {[%clk 0:01:40.6]} 27... Nc4 {[%clk 0:01:46.2]}
28. Bxc4 {[%clk 0:01:39.4]} 28... bxc4 {[%clk 0:01:45.8]} 29. Kg3 {[%clk
0:01:40]} 29... Qxc3 {[%clk 0:01:31.2]} 30. Re3 {[%clk 0:01:33.5]} 30... Qg7
{[%clk 0:01:24.5]} 31. Re1 {[%clk 0:01:29.8]} 31... Rd7 {[%clk 0:01:08.8]} 32.
Reh1 {[%clk 0:01:23.8]} 32... f6 {[%clk 0:01:08.7]} 33. Qe3 {[%clk 0:01:24.1]}
33... e5 {[%clk 0:01:03.7]} 34. Qc5 {[%clk 0:01:17.4]} 34... Rc8 {[%clk
0:01:00]} 35. Qe3 {[%clk 0:01:15.7]} 35... Qf8 {[%clk 0:00:55]} 36. Qb6 {[%clk
0:01:11.7]} 36... Rcc7 {[%clk 0:00:49.2]} 37. Qe6+ {[%clk 0:01:09.4]} 37... Kh8
{[%clk 0:00:44.7]} 38. Rh6 {[%clk 0:01:05.2]} 38... e4 {[%clk 0:00:42.3]} 39.
Kf2 {[%clk 0:00:52.9]} 39... Qc5+ {[%clk 0:00:34.7]} 40. Kf1 {[%clk 0:00:48]}
40... Rd1+ {[%clk 0:00:30.8]} 41. Ke2 {[%clk 0:00:48]} 41... Rxh1 {[%clk
0:00:25.6]} 42. Qxf6+ {[%clk 0:00:39.3]} 42... Kg8 {[%clk 0:00:21.8]} 43. Rxh1
{[%clk 0:00:38.4]} 43... exf3+ {[%clk 0:00:21]} 44. Kf1 {[%clk 0:00:35.2]} 44...
Qe7 {[%clk 0:00:19.2]} 45. Qxe7 {[%clk 0:00:29.7]} 45... Rxe7 {[%clk 0:00:20.1]}
46. Kf2 {[%clk 0:00:29.9]} 46... Re2+ {[%clk 0:00:20]} 47. Kg3 {[%clk
0:00:30.1]} 47... Rg2+ {[%clk 0:00:19.2]} 48. Kf4 {[%clk 0:00:26]} 48... f2
{[%clk 0:00:19.4]} 49. Rf1 {[%clk 0:00:26.1]} 49... Kg7 {[%clk 0:00:18.7]} 50.
c3 {[%clk 0:00:24.3]} 50... h5 {[%clk 0:00:17.9]} 51. g5 {[%clk 0:00:18.7]}
51... h4 {[%clk 0:00:17.1]} 52. Ke3 {[%clk 0:00:18]} 52... h3 {[%clk 0:00:16.9]}
53. Rd1 {[%clk 0:00:17.2]} 53... Bc6 {[%clk 0:00:16.5]} 54. Kd4 {[%clk
0:00:16.6]} 54... Rg1 {[%clk 0:00:15.5]} 55. Rd2 {[%clk 0:00:16]} 55... f1=Q
{[%clk 0:00:15.8]} 56. Kc5 {[%clk 0:00:16.3]} 56... Be8 {[%clk 0:00:15.1]} 57.
Kb4 {[%clk 0:00:16.6]} 57... Rxg5 {[%clk 0:00:13.9]} 58. a4 {[%clk 0:00:16.1]}
58... Qb1+ {[%clk 0:00:11.9]} 59. Ka3 {[%clk 0:00:16.3]} 59... Qb3# {[%clk
0:00:11.6]} 0-1

[Event "Late-Titled-Tuesday-Blitz-May-14-2024"]
[Site "Chess.com"]
[Date "2024.05.14"]
[Round "7"]
[White "ferrufino64"]
[Black "dealshark"]
[Result "1-0"]
[WhiteElo "2343"]
[BlackElo "2538"]
[TimeControl "180+1"]
[EndTime "15:17:17 PDT"]
[Termination "ferrufino64 won by checkmate"]

1. e4 {[%clk 0:02:55.6]} 1... c6 {[%clk 0:03:00.2]} 2. d4 {[%clk 0:02:51]} 2...
d5 {[%clk 0:03:01.1]} 3. Nc3 {[%clk 0:02:51.4]} 3... dxe4 {[%clk 0:03:01.5]} 4.
Nxe4 {[%clk 0:02:52.3]} 4... Bf5 {[%clk 0:03:02]} 5. Ng3 {[%clk 0:02:52.5]} 5...
Bg6 {[%clk 0:03:02.7]} 6. h4 {[%clk 0:02:52.6]} 6... h6 {[%clk 0:03:03.2]} 7.
Nf3 {[%clk 0:02:53.4]} 7... Nd7 {[%clk 0:03:02.9]} 8. h5 {[%clk 0:02:54]} 8...
Bh7 {[%clk 0:03:03.2]} 9. Bd3 {[%clk 0:02:54.8]} 9... Bxd3 {[%clk 0:03:03.6]}
10. Qxd3 {[%clk 0:02:55.7]} 10... e6 {[%clk 0:03:04.4]} 11. Bd2 {[%clk
0:02:56.4]} 11... Ngf6 {[%clk 0:03:04.4]} 12. c3 {[%clk 0:02:56.9]} 12... Be7
{[%clk 0:03:04.8]} 13. Ne4 {[%clk 0:02:56.2]} 13... Nxe4 {[%clk 0:03:04.6]} 14.
Qxe4 {[%clk 0:02:57.1]} 14... Nf6 {[%clk 0:03:05.3]} 15. Qe2 {[%clk 0:02:57.2]}
15... Qc7 {[%clk 0:03:03.2]} 16. O-O-O {[%clk 0:02:56.6]} 16... c5 {[%clk
0:03:02.1]} 17. dxc5 {[%clk 0:02:55.7]} 17... Bxc5 {[%clk 0:03:01.7]} 18. Be3
{[%clk 0:02:55.7]} 18... O-O {[%clk 0:02:58.6]} 19. Bxc5 {[%clk 0:02:50.3]}
19... Qxc5 {[%clk 0:02:58.6]} 20. Rd4 {[%clk 0:02:47.5]} 20... Rfd8 {[%clk
0:02:56]} 21. g4 {[%clk 0:02:38.7]} 21... Rxd4 {[%clk 0:02:54.1]} 22. Nxd4
{[%clk 0:02:39.6]} 22... Rc8 {[%clk 0:02:43.4]} 23. Kb1 {[%clk 0:02:33.6]} 23...
a6 {[%clk 0:02:42.6]} 24. Rg1 {[%clk 0:02:28.4]} 24... b5 {[%clk 0:02:21.5]} 25.
a3 {[%clk 0:02:28]} 25... Qd5 {[%clk 0:01:47.2]} 26. Ka1 {[%clk 0:02:14.8]}
26... Ne4 {[%clk 0:01:42.9]} 27. Qe3 {[%clk 0:01:55.1]} 27... Nc5 {[%clk
0:01:21.6]} 28. g5 {[%clk 0:01:54.1]} 28... hxg5 {[%clk 0:01:12.8]} 29. Rxg5
{[%clk 0:01:51.6]} 29... Qe4 {[%clk 0:00:59.5]} 30. Qg3 {[%clk 0:01:04.2]} 30...
Qh7 {[%clk 0:00:59.4]} 31. Qd6 {[%clk 0:00:52.9]} 31... Ne4 {[%clk 0:00:52.2]}
32. Qxa6 {[%clk 0:00:51.1]} 32... Rf8 {[%clk 0:00:45.8]} 33. Rxb5 {[%clk
0:00:48.9]} 33... Qh6 {[%clk 0:00:40.1]} 34. Qc6 {[%clk 0:00:35]} 34... Qc1+
{[%clk 0:00:37.9]} 35. Ka2 {[%clk 0:00:35.4]} 35... Nd2 {[%clk 0:00:38.6]} 36.
a4 {[%clk 0:00:26.6]} 36... Qb1+ {[%clk 0:00:31.6]} 37. Ka3 {[%clk 0:00:26.7]}
37... Qa1+ {[%clk 0:00:30.6]} 38. Kb4 {[%clk 0:00:27]} 38... Qxb2+ {[%clk
0:00:30.3]} 39. Ka5 {[%clk 0:00:25.1]} 39... Qa2 {[%clk 0:00:25.5]} 40. Rb4
{[%clk 0:00:17]} 40... Rd8 {[%clk 0:00:14.6]} 41. h6 {[%clk 0:00:15.9]} 41...
gxh6 {[%clk 0:00:14.4]} 42. f4 {[%clk 0:00:09.7]} 42... Rd5+ {[%clk 0:00:10.7]}
43. Kb6 {[%clk 0:00:10.1]} 43... Kg7 {[%clk 0:00:06.5]} 44. f5 {[%clk
0:00:08.8]} 44... e5 {[%clk 0:00:04.8]} 45. f6+ {[%clk 0:00:08.3]} 45... Kg6
{[%clk 0:00:04.7]} 46. Nb5 {[%clk 0:00:06]} 46... Ne4 {[%clk 0:00:03.2]} 47. Qe8
{[%clk 0:00:03.5]} 47... Nxc3 {[%clk 0:00:02.1]} 48. Qg8+ {[%clk 0:00:03.3]}
48... Kh5 {[%clk 0:00:02.4]} 49. Qg4# {[%clk 0:00:02.2]} 1-0